Workbook

Sheet INFORMATION (hidden)
A1: 2023 Full Cost Additional Service Water Rates Sch TR-2b.Z25.xlsm
A2: 01/03/2023
A3: CENTRAL VALLEY PROJECT
A4: SCHEDULE OF M&I FULL COST ADDITIONAL SERVICE WATER RATES
A5: AS OF SEPTEMBER 30, 2021
A6: 2023 SPECIAL WATER RATES
C8: SOURCE DATA:
A19: 10/25/2022 | B19: rm | C19: updated file names, title, headings, and dates
C20: ran macro
C21: Verified SchTR-2B, Output tab with M & I Sch A-4, Output tab, for Total M & I Construction
C22: Verified SchTR-2B, Output tab with Sch S-6, Output tab, FY2023 Projected Deliveries
C23: ready for review
A24: 01/03/2023 | B24: KJ | C24: Review

Sheet Flow Chart (hidden)
A1: =INFORMATION!A1 -> 2023 Full Cost Additional Service Water Rates Sch TR-2b.Z25.xlsm
A2: =INFORMATION!A2 -> 01/03/2023
A3: CENTRAL VALLEY PROJECT
A4: SCHEDULE OF M&I UNPAID CAPITAL COST PER ACRE-FOOT BY COMPONENT AND/OR FACILITY
A5: =INFORMATION!A6 -> 2023 SPECIAL WATER RATES

Sheet MACRO_INPUT (hidden)
A1: =INFORMATION!A1 -> 2023 Full Cost Additional Service Water Rates Sch TR-2b.Z25.xlsm
A2: =INFORMATION!$A$2 -> 01/03/2023
A4: =OUTPUT!A5 -> SCHEDULE OF M&I FULL COST ADDITIONAL SERVICE WATER RATES
A5: =OUTPUT!A6 -> AS OF SEPTEMBER 30, 2021
A6: =OUTPUT!A7 -> 2023 SPECIAL WATER RATES
B7: RESERVED FOR MACRO INPUT
D9: 2023
B10: Schedule S-6 | D10: Projected Deliveries | G10: Schedule A-5 | M10: Schedule A-4 | T10: Schedule A-2B | W10: Schedule A-7 | Z10: Schedule FC (FA-1I)
G11: Capital Costs | K11: CVP PUE BOR | L11: CVP PUE DOE | M11: Other Cost and Miscellaneous Revenue | T11: Capital Repayment | W11: Jones PP | Z11: PW Interest Rate
A16: Total Storage | D16: 331768.7143 | N16: Deferred Interest Capitalized | R16: 21277763 | T16: Grand Total | U16: 140056688 | W16: CVP Sub-Total (A/F) | X16: 4956444 | Z16: 0.08012
A17: Total Conveyance - all other contractors | D17: 172696.7143 | N17: Programmatic EIS Capitalized 2/ | R17: 1591067.959 | W17: Delta-Mendota Exchange | X17: 2496684.902
A18: Total Dos Amigos Convey. Pumping | D18: 12196.42857 | G18: Storage 1/ | N18: All others | R18: 7378781.395
A19: Total O'Neill Convey. Pumping | D19: 98940.57143 | H19: San Felipe Unit Contractors | J19: 10103901.89 | K19: 0 | L19: 0
A20: CVP-Subtotal-Jones PP-Conv Pumping | D20: 106845 | H20: All Other Contractors | J20: 40454308.98 | K20: 548627.8606 | L20: 533375.2892
A21: Delta-Mendota Exc. -Conveyance PP Tracy | D21: 46430.98482 | I21: Total Storage | J21: 50558210.87 | K21: 548627.8606 | L21: 533375.2892
A22: Total Jones PP - conveyance Pumping | D22: 153275.9848
G23: Conveyance | M23: San Felipe Unit Contractors | R23: 809388.11
H24: Contra Costa WD 3/ | J24: 0 | M24: All Other Contractors | R24: 379393.76
H25: All Other Contractors | J25: 26600102.02 | M25: All Other Contractors | R25: 288911.73
I26: Total Conveyance | J26: 26600102.02 | M26: Dos Amigos PP | R26: 4604.81
M27: O'Neill Pump-Generator Plant | R27: 138321.73
B28: Schedule S-6 | D28: 2022 | G28: Conveyance Pumping | M28: All Other Contractors | R28: 18027.08
D29: Projected Deliveries | H29: Dos Amigos Pumping Plant | J29: 821360.684 | K29: 274432.2546 | L29: 266802.6793 | M29: Bella Vista WD (Wintu PP) | R29: 60913.26
A30: Black Butte D&R | H30: O'Neill Pump-Generator Plant | J30: 3436478.792 | K30: 855429.1677 | L30: 831647.119 | M30: Gianelli, WR PGP | R30: 115667.27
B31: County of Colusa | D31: 6.571428571 | H31: Jones Pumping Plant | J31: 15108319.43 | K31: 5437365.598 | L31: 5286199.73 | M31: Westlands WD Relifts | R31: 3501.54
B32: Elk Creek CSD | D32: 14 | M32: Pleasant Valley PP (City of Coalinga) | R32: 3511.24
B33: U. S. Forest Service - BB | D33: 9.857142857 | M33: Gianelli, WR PGP | R33: 15649.35
B34: Whitney Const Inc. | D34: 4 | I34: Total Conveyance Pumping | J34: 19366158.9 | K34: 6567227.021 | L34: 6384649.528 | M34: Shasta PP (City of Shasta Lake) | R34: 16388.68
D35: 34.42857143
G36: Direct Pumping
H37: Bella Vista WD (Wintu PP) | J37: 902585.8375 | K37: 206588.8639 | L37: 200845.4236
A38: Clear Creek Unit | H38: Colusa County WD | J38: 36408.49257 | K38: 2142.483199 | L38: 2082.919367
B39: Clear Creek CSD | D39: 1651.142857 | H39: Contra Costa Pumping Plants | J39: 4974012.629 | K39: 2522064.661 | L39: 2451947.968
H40: Kanawha WD | J40: 1558.779776 | K40: 36.78117022 | L40: 35.75860563
H41: Pleasant Valley Canalside Relifts | J41: 49429.81448 | K41: 11922.70817 | L41: 11591.24131
A42: Contra Costa Canal | H42: Pleasant Valley Pumping Plant | J42: 206069.19 | K42: 152.3528045 | L42: 148.1171974
B43: Contra Costa WD | D43: 80723.71429 | H43: San Benito County WD
I44: Pacheco Pumping Plant | J44: 224076.6822 | K44: 113617.7014 | L44: 110458.9808
I45: Gianelli, William R. Pump-Generator Plant 1/ | J45: 379445.3046 | K45: 171345.4409 | L45: 166581.8137
A46: Cow Creek Unit | H46: San Luis WD Canalside Relifts & Turnouts | J46: 73891.36987 | K46: 37466.49368 | L46: 36424.87619
B47: Bella Vista WD | D47: 3730.285714 | H47: Santa Clara Valley WD
I48: Coyote Pumping Plant | J48: 1356563.247 | K48: 687843.0917 | L48: 668720.1549
I49: Pacheco Pumping Plant | J49: 4713216.438 | K49: 2389828.395 | L49: 2323388.043
A50: Cross Valley Canal | I50: Gianelli, William R. Pump-Generator Plant 1/ | J50: 7981221.612 | K50: 3604070.414 | L50: 3503872.547
B51: County of Fresno | D51: 86 | H51: Shasta Pumping Plant | J51: 585576.7661 | K51: 137625.4568 | L51: 133799.2893
B52: County of Tulare | D52: 192 | H52: State-Delta Pumping Plant (Cross Valley Canal) | J52: 15079.58 | K52: 7646.075442 | L52: 7433.504553
D53: 278 | H53: Westlands WD Canalside Relift PP | J53: 787112.8242 | K53: 43459.06906 | L53: 42250.85015
I54: Total Direct Pumping | J54: 22286248.57 | K54: 9935809.989 | L54: 9659581.488
A56: Delta-Mendota Canal
B57: Byron Bethany ID | D57: 884.2857143 | G57: Other Costs 4/ | J57: 7378781.395
B58: City of Tracy | D58: 6594.571429
B59: Del Puerto WD | D59: 3
B60: Department of Veterans Affairs | D60: 367.1428571 | H60: Total | J60: 126189501.8 | K60: 17051664.87 | L60: 16577606.31
B61: Panoche WD - DMC | D61: 23.42857143
B62: San Luis WD - DMC | D62: 32
D63: 7904.428571
A67: Folsom D&R
B68: City of Folsom | D68: 3306
B69: City of Roseville | D69: 22126.57143
B70: El Dorado ID - FD&R | D70: 3913
B71: Placer County WA | D71: 5000
B72: Sacramento County WA | D72: 3600.714286
B73: San Juan WD | D73: 175.7142857
D74: 38122
A77: Folsom-South Canal
B78: East Bay MUD | D78: 6645.428571
B79: Sacramento County WA - FSC | D79: 4286
B80: Sacramento MUD | D80: 4286
D81: 15217.42857
A84: Friant Dam
B85: County of Madera | D85: 69.57142857
B86: Fresno County WW #18 | D86: 100.5714286
D87: 170.1428571
A90: Friant-Kern Canal
B91: Arvin-Edison WSD | D91: 425.4285714
B92: City of Fresno | D92: 38550.85714
B93: City of Lindsay | D93: 1535
B94: City of Orange Cove | D94: 1100.857143
B95: Delano-Earlimart ID | D95: 259.7142857
B96: Lindsay-Strathmore ID | D96: 584.5714286
B97: Shafter-Wasco ID | D97: 108.8571429
B98: Terra Bella ID | D98: 1345.142857
D99: 43910.42857
A102: New Melones D & R
B103: Stockton-East WD | D103: 24507.14286
A107: Sacramento River
B108: City of Redding - SR | D108: 2681
B109: City of W. Sacramento | D109: 5797.857143
B110: Lake California P.O.A. | D110: 185.7142857
B111: Riverview Golf & CC | D111: 20.57142857
D112: 8685.142857
A115: San Felipe Unit
B116: San Benito County WD | D116: 5210.142857
B117: Santa Clara Valley WD | D117: 81377
D118: 86587.14286
A121: San Luis Canal - Fresno
B122: City of Avenal | D122: 2300.571429
B123: City of Coalinga | D123: 5618.285714
B124: City of Huron | D124: 1033.428571
B125: State of CA | D125: 1.857142857
B126: Westlands WD | D126: 2797
D127: 11751.14286
A130: San Luis Canal - Tracy
B131: Pacheco WD | D131: 11
B132: Panoche WD | D132: 136.5714286
B133: San Luis WD 2/ | D133: 454.7142857
D134: 602.2857143
A137: Shasta D&R
B138: Centerville CSD | D138: 527.5714286
B139: Mountain Gate CSD | D139: 464.7142857
B140: Shasta CWA | D140: 97.71428571
D141: 1090
A145: Spring Creek Conduit
B146: City of Redding - SCC | D146: 5136.285714
B147: Shasta CWA - SCC | D147: 73.14285714
B148: Shasta CSD | D148: 252
D149: 5461.428571
A152: Tehama-Colusa Canal
B153: Colusa County WD | D153: 129.2857143
B154: Kanawha WD | D154: 26.85714286
D155: 156.1428571
A158: Toyon Pipeline
B159: City of Redding - TP | D159: 17.42857143
B160: City of Shasta Lake | D160: 1167.857143
B161: U.S. Forest Service | D161: 1
D162: 1186.285714
D165: 331768.7143
A168: Delta-Mendota Exchange | D168: 46430.98482
D170: 378199.6991

Sheet OUTPUT
A2: =INFORMATION!A1 -> 2023 Full Cost Additional Service Water Rates Sch TR-2b.Z25.xlsm
A3: =INFORMATION!$A$2 -> 01/03/2023
A4: =INFORMATION!A3 -> CENTRAL VALLEY PROJECT
A5: =INFORMATION!A4 -> SCHEDULE OF M&I FULL COST ADDITIONAL SERVICE WATER RATES
A6: =INFORMATION!A5 -> AS OF SEPTEMBER 30, 2021
A7: =INFORMATION!A6 -> 2023 SPECIAL WATER RATES
A9: Category | B9: A) Component / Facility | C9: Related Footnotes | D9: B) Total M&I Construction at 9/30/2021 <Sch A-4> | E9: C) Ratio of Total (B/$147,204,054) | F9: D) Allocation of Construction Repayment at 9/30/2021 1/ (C*$139,277,543) | G9: E) Unpaid M&I Construction: Net Unpaid Construction at 9/30/2021 (B-D) | H9: F) Unpaid M&I Construction: Annualized Costs Remaining Years (E/10) | I9: G) Unpaid M&I Construction: Annual Interest @ (E*0.08012) | J9: H) FY 2023 Projected Deliveries <Sch S-6> | K9: I) Unpaid M&I Construction Cost Per Acre Foot: Construction Only (F/H) | L9: J) Unpaid M&I Construction Cost Per Acre Foot: Interest (G/H) | M9: K) Unpaid M&I Construction Cost Per Acre Foot: Total (I+J)
A10: Storage | B10: San Felipe Unit | C10: - | D10: =+MACRO_INPUT!J19-MACRO_INPUT!R23 -> 9294513.78 | E10: =D10/$D$52 -> 0.06314033831 | F10: =AllocationOfAdjustedMIConstructionRepayment[Adjusted M&I Construction Repayment]*E10 -> 8794031.184 | G10: =D10-F10 -> 500482.5959 | H10: =G10/10 -> 50048.25959 | I10: =G10*MACRO_INPUT!$Z$16 -> 40098.66558 | J10: =MACRO_INPUT!D118 -> 86587.14286 | K10: =ROUND(H10/J10,2) -> 0.58 | L10: =ROUND(I10/J10,2) -> 0.46 | M10: =K10+L10 -> 1.04
A11: Storage | B11: All Other Contractors | C11: - | D11: =+MACRO_INPUT!J20-MACRO_INPUT!R24 -> 40074915.22 | E11: =D11/$D$52 -> 0.2722405674 | F11: =AllocationOfAdjustedMIConstructionRepayment[Adjusted M&I Construction Repayment]*E11 -> 37916997.33 | G11: =D11-F11 -> 2157917.894 | H11: =G11/10 -> 215791.7894 | I11: =G11*MACRO_INPUT!$Z$16 -> 172892.3816 | J11: =MACRO_INPUT!D16-J10 -> 245181.5714 | K11: =ROUND(H11/J11,2) -> 0.88 | L11: =ROUND(I11/J11,2) -> 0.71 | M11: =K11+L11 -> 1.59
A12: Total | B12: Storage | C12: - | D12: =SUM(D10:D11) -> 49369429 | E12: 0.3353809057 | F12: 46711028.51 | G12: 2658400.489 | H12: 265840.0489 | I12: 212991.0472 | J12: - | K12: - | L12: - | M12: -
A13: Conveyance | B13: Contra Costa Canal System | C13: 2/ | D13: =+MACRO_INPUT!J24 -> 0 | E13: - | F13: =AllocationOfAdjustedMIConstructionRepayment[Adjusted M&I Construction Repayment]*E13 -> 0 | G13: =D13-F13 -> 0 | H13: =G13/10 -> 0 | I13: =G13*MACRO_INPUT!$Z$16 -> 0 | J13: - | K13: - | L13: - | M13: -
A14: Conveyance | B14: All Other Contractors | C14: - | D14: =+MACRO_INPUT!J25-MACRO_INPUT!R25 -> 26311190.29 | E14: =D14/$D$52 -> 0.1787395764 | F14: =AllocationOfAdjustedMIConstructionRepayment[Adjusted M&I Construction Repayment]*E14 -> 24894409.04 | G14: =D14-F14 -> 1416781.246 | H14: =G14/10 -> 141678.1246 | I14: =G14*MACRO_INPUT!$Z$16 -> 113512.5135 | J14: =MACRO_INPUT!D17 -> 172696.7143 | K14: =ROUND(H14/J14,2) -> 0.82 | L14: =ROUND(I14/J14,2) -> 0.66 | M14: =K14+L14 -> 1.48
A15: Total | B15: Conveyance | C15: - | D15: =SUM(D13:D14) -> 26311190.29 | E15: =SUM(E13:E14) -> 0.1787395764 | F15: =SUM(F13:F14) -> 24894409.04 | G15: =SUM(G13:G14) -> 1416781.246 | H15: =SUM(H13:H14) -> 141678.1246 | I15: =I14 -> 113512.5135 | J15: - | K15: - | L15: - | M15: -
A16: Conveyance Pumping | B16: Dos Amigos Pumping Plant, Construction only | C16: 3/ | D16: =+MACRO_INPUT!J29-MACRO_INPUT!K29-MACRO_INPUT!L29-MACRO_INPUT!R26 -> 275520.94 | E16: =D16/$D$52 -> 0.001871693966 | F16: =AllocationOfAdjustedMIConstructionRepayment[Adjusted M&I Construction Repayment]*E16 -> 260684.9369 | G16: =D16-F16 -> 14836.0031 | H16: =G16/10 -> 1483.60031 | I16: =G16*MACRO_INPUT!$Z$16 -> 1188.660568 | J16: =MACRO_INPUT!D18-MACRO_INPUT!D53 -> 11918.42857 | K16: =ROUND(H16/J16,2) -> 0.12 | L16: =ROUND(I16/J16,2) -> 0.1 | M16: =K16+L16 -> 0.22
A17: Conveyance Pumping | B17: Dos Amigos Pumping Plant, PUE only | C17: - | D17: =+MACRO_INPUT!K29+MACRO_INPUT!L29 -> 541234.934 | E17: =D17/$D$52 -> 0.003676766493 | F17: =AllocationOfAdjustedMIConstructionRepayment[Adjusted M&I Construction Repayment]*E17 -> 512091.0033 | G17: =D17-F17 -> 29143.93062 | H17: 2914.393062 | I17: =G17*MACRO_INPUT!$Z$16 -> 2335.011721 | J17: =MACRO_INPUT!D18 -> 12196.42857 | K17: =ROUND(H17/J17,2) -> 0.24 | L17: =ROUND(I17/J17,2) -> 0.19 | M17: =K17+L17 -> 0.43
A18: Conveyance Pumping | B18: Dos Amigos Pumping Plant, Unpaid M&I Construction Per Acre Foot Total | C18: - | D18: 0 | E18: - | F18: =AllocationOfAdjustedMIConstructionRepayment[Adjusted M&I Construction Repayment]*E18 -> 0 | G18: 0 | H18: 0 | I18: =G18*MACRO_INPUT!$Z$16 -> 0 | J18: - | K18: =SUM(K16:K17) -> 0.36 | L18: =SUM(L16:L17) -> 0.29 | M18: =SUM(M16:M17) -> 0.65
A19: Conveyance Pumping | B19: O'Neill P-Generator/Pumping Plant, Construction only | C19: - | D19: =+MACRO_INPUT!J30-MACRO_INPUT!K30-MACRO_INPUT!L30-MACRO_INPUT!R27 -> 1611080.775 | E19: =D19/$D$52 -> 0.01094454079 | F19: =AllocationOfAdjustedMIConstructionRepayment[Adjusted M&I Construction Repayment]*E19 -> 1524328.75 | G19: =D19-F19 -> 86752.02464 | H19: 8675.202464 | I19: =G19*MACRO_INPUT!$Z$16 -> 6950.572214 | J19: =MACRO_INPUT!D19 -> 98940.57143 | K19: =ROUND(H19/J19,2) -> 0.09 | L19: =ROUND(I19/J19,2) -> 0.07 | M19: =K19+L19 -> 0.16
A20: Conveyance Pumping | B20: O'Neill P-Generator/Pumping Plant, PUE only | C20: - | D20: =+MACRO_INPUT!K30+MACRO_INPUT!L30 -> 1687076.287 | E20: =D20/$D$52 -> 0.01146080043 | F20: =AllocationOfAdjustedMIConstructionRepayment[Adjusted M&I Construction Repayment]*E20 -> 1596232.124 | G20: =D20-F20 -> 90844.16242 | H20: 9084.416242 | I20: =G20*MACRO_INPUT!$Z$16 -> 7278.434293 | J20: =J19 -> 98940.57143 | K20: =ROUND(H20/J20,2) -> 0.09 | L20: =ROUND(I20/J20,2) -> 0.07 | M20: =K20+L20 -> 0.16
A21: Conveyance Pumping | B21: O'Neill P-Generator/Pumping Plant, Unpaid M&I Construction Per Acre Foot Total | C21: - | D21: 0 | E21: - | F21: =AllocationOfAdjustedMIConstructionRepayment[Adjusted M&I Construction Repayment]*E21 -> 0 | G21: 0 | H21: 0 | I21: =G21*MACRO_INPUT!$Z$16 -> 0 | J21: - | K21: =SUM(K19:K20) -> 0.18 | L21: =SUM(L19:L20) -> 0.14 | M21: =SUM(M19:M20) -> 0.32
A22: Conveyance Pumping | B22: Jones Pumping Plant, Friant Kern/Madera, Construction only | C22: 4/, 5/ | D22: =+Footnotes!D25 -> 1468825.98 | E22: =D22/$D$52 -> 0.009978162545 | F22: =AllocationOfAdjustedMIConstructionRepayment[Adjusted M&I Construction Repayment]*E22 -> 1389733.963 | G22: =D22-F22 -> 79092.01671 | H22: 7909.201671 | I22: =G22*MACRO_INPUT!$Z$16 -> 6336.852378 | J22: =MACRO_INPUT!D87+MACRO_INPUT!D99 -> 44080.57143 | K22: =ROUND(H22/J22,2) -> 0.18 | L22: =ROUND(I22/J22,2) -> 0.14 | M22: =K22+L22 -> 0.32
A23: Conveyance Pumping | B23: Jones Pumping Plant, Friant Kern/Madera, PUE only | C23: 4/, 5/ | D23: =+Footnotes!G25 -> 3592231.397 | E23: =D23/$D$52 -> 0.0244030738 | F23: =AllocationOfAdjustedMIConstructionRepayment[Adjusted M&I Construction Repayment]*E23 -> 3398800.161 | G23: =D23-F23 -> 193431.2367 | H23: 19343.12367 | I23: =G23*MACRO_INPUT!$Z$16 -> 15497.71068 | J23: =J22 -> 44080.57143 | K23: =ROUND(H23/J23,2) -> 0.44 | L23: =ROUND(I23/J23,2) -> 0.35 | M23: =K23+L23 -> 0.79
A24: Conveyance Pumping | B24: Jones Pumping Plant, Friant Kern/Madera, Unpaid M&I Construction Per Acre Foot Total | C24: - | D24: 0 | E24: - | F24: =AllocationOfAdjustedMIConstructionRepayment[Adjusted M&I Construction Repayment]*E24 -> 0 | G24: 0 | H24: 0 | I24: =G24*MACRO_INPUT!$Z$16 -> 0 | J24: - | K24: =SUM(K22:K23) -> 0.62 | L24: =SUM(L22:L23) -> 0.49 | M24: =SUM(M22:M23) -> 1.11
A25: Conveyance Pumping | B25: Jones Pumping Plant, All Other Contractors, Construction only Construction only | C25: 4/, 6/ | D25: =+Footnotes!D26-MACRO_INPUT!R28 -> 2897901.04 | E25: =D25/$D$52 -> 0.01968628552 | F25: =AllocationOfAdjustedMIConstructionRepayment[Adjusted M&I Construction Repayment]*E25 -> 2741857.479 | G25: =D25-F25 -> 156043.5618 | H25: 15604.35618 | I25: =G25*MACRO_INPUT!$Z$16 -> 12502.21017 | J25: =MACRO_INPUT!D20 -> 106845 | K25: =ROUND(H25/J25,2) -> 0.15 | L25: =ROUND(I25/J25,2) -> 0.12 | M25: =K25+L25 -> 0.27
A26: Conveyance Pumping | B26: Jones Pumping Plant, All Other Contractors, PUE only | C26: 4/, 6/ | D26: =+Footnotes!G26 -> 7131333.93 | E26: =D26/$D$52 -> 0.04844522776 | F26: =AllocationOfAdjustedMIConstructionRepayment[Adjusted M&I Construction Repayment]*E26 -> 6747332.292 | G26: =D26-F26 -> 384001.6382 | H26: 38400.16382 | I26: =G26*MACRO_INPUT!$Z$16 -> 30766.21125 | J26: =J25 -> 106845 | K26: =ROUND(H26/J26,2) -> 0.36 | L26: =ROUND(I26/J26,2) -> 0.29 | M26: =K26+L26 -> 0.65
A27: Conveyance Pumping | B27: Jones Pumping Plant, All Other Contractors, Unpaid M&I Construction Per Acre Foot Total | C27: - | D27: 0 | E27: - | F27: =AllocationOfAdjustedMIConstructionRepayment[Adjusted M&I Construction Repayment]*E27 -> 0 | G27: 0 | H27: 0 | I27: =G27*MACRO_INPUT!$Z$16 -> 0 | J27: - | K27: =SUM(K25:K26) -> 0.51 | L27: =SUM(L25:L26) -> 0.41 | M27: =SUM(M25:M26) -> 0.92
A28: Total | B28: Conveyance Pumping | C28: - | D28: =SUM(D16:D26) -> 19205205.28 | E28: 0.1304665513 | F28: 18171060.71 | G28: 1034144.574 | H28: 103414.4574 | I28: 82855.66328 | J28: - | K28: - | L28: - | M28: -
A29: Direct Pumping | B29: Bella Vista WD (Wintu PP) | C29: - | D29: =+MACRO_INPUT!J37-MACRO_INPUT!R29 -> 841672.5775 | E29: =D29/$D$52 -> 0.005717726882 | F29: =AllocationOfAdjustedMIConstructionRepayment[Adjusted M&I Construction Repayment]*E29 -> 796350.9516 | G29: =D29-F29 -> 45321.6259 | H29: =G29/10 -> 4532.16259 | I29: =G29*MACRO_INPUT!$Z$16 -> 3631.168667 | J29: =MACRO_INPUT!D47 -> 3730.285714 | K29: =ROUND(H29/J29,2) -> 1.21 | L29: =ROUND(I29/J29,2) -> 0.97 | M29: =K29+L29 -> 2.18
A30: Direct Pumping | B30: Colusa County WD Relift PP | C30: - | D30: =+MACRO_INPUT!J38 -> 36408.49257 | E30: 0.0002473334907 | F30: =AllocationOfAdjustedMIConstructionRepayment[Adjusted M&I Construction Repayment]*E30 -> 34448.00089 | G30: 1960.491673 | H30: 196.0491673 | I30: =G30*MACRO_INPUT!$Z$16 -> 157.0745928 | J30: =MACRO_INPUT!D153 -> 129.2857143 | K30: 1.52 | L30: 1.21 | M30: 2.73
A31: Direct Pumping | B31: Contra Costa PP (Contra Costa WD) | C31: - | D31: =+MACRO_INPUT!J39 -> 4974012.629 | E31: 0.03378991603 | F31: =AllocationOfAdjustedMIConstructionRepayment[Adjusted M&I Construction Repayment]*E31 -> 4706176.483 | G31: 267836.1463 | H31: 26783.61463 | I31: =G31*MACRO_INPUT!$Z$16 -> 21459.03204 | J31: =MACRO_INPUT!D43 -> 80723.71429 | K31: 0.33 | L31: 0.27 | M31: 0.6
A32: Direct Pumping | B32: Kanawha WD | C32: - | D32: =+MACRO_INPUT!J40 -> 1558.779776 | E32: 1.058924487e-05 | F32: =AllocationOfAdjustedMIConstructionRepayment[Adjusted M&I Construction Repayment]*E32 -> 1474.844008 | G32: 83.9357676 | H32: 8.39357676 | I32: =G32*MACRO_INPUT!$Z$16 -> 6.7249337 | J32: =MACRO_INPUT!D154 -> 26.85714286 | K32: 0.31 | L32: 0.25 | M32: 0.56
A33: Direct Pumping | B33: Pleasant Valley PP (City of Coalinga) | C33: - | D33: =+MACRO_INPUT!J41-MACRO_INPUT!R32 -> 45918.57448 | E33: 0.0003119382462 | F33: =AllocationOfAdjustedMIConstructionRepayment[Adjusted M&I Construction Repayment]*E33 -> 43445.99249 | G33: 2472.581988 | H33: 247.2581988 | I33: =G33*MACRO_INPUT!$Z$16 -> 198.1032688 | J33: =MACRO_INPUT!D123 -> 5618.285714 | K33: 0.04 | L33: 0.04 | M33: 0.08
A34: Direct Pumping | B34: Canalside Relift PP (City of Coalinga) | C34: - | D34: =+MACRO_INPUT!J42 -> 206069.19 | E34: 0.001399888007 | F34: =AllocationOfAdjustedMIConstructionRepayment[Adjusted M&I Construction Repayment]*E34 -> 194972.9621 | G34: 11096.2279 | H34: 1109.62279 | I34: =G34*MACRO_INPUT!$Z$16 -> 889.0297795 | J34: =J33 -> 5618.285714 | K34: 0.2 | L34: 0.16 | M34: 0.36
A35: Direct Pumping | B35: San Benito County WD, Pacheco PP | C35: - | D35: =+MACRO_INPUT!J44 -> 224076.6822 | E35: 0.001522218145 | F35: =AllocationOfAdjustedMIConstructionRepayment[Adjusted M&I Construction Repayment]*E35 -> 212010.8031 | G35: 12065.8791 | H35: 1206.58791 | I35: =G35*MACRO_INPUT!$Z$16 -> 966.7182338 | J35: - | K35: - | L35: - | M35: -
A36: Direct Pumping | B36: San Benito County WD, Gianelli, WR PGP | C36: - | D36: =+MACRO_INPUT!J45-MACRO_INPUT!R33 -> 363795.9546 | E36: 0.002471371843 | F36: =AllocationOfAdjustedMIConstructionRepayment[Adjusted M&I Construction Repayment]*E36 -> 344206.5982 | G36: 19589.35648 | H36: 1958.935648 | I36: =G36*MACRO_INPUT!$Z$16 -> 1569.499241 | J36: - | K36: - | L36: - | M36: -
A37: Total | B37: San Benito County WD | C37: - | D37: =SUM(D35:D36) -> 587872.6369 | E37: 0.003993589988 | F37: 556217.4013 | G37: 31655.23558 | H37: 3165.523558 | I37: 2536.217475 | J37: =MACRO_INPUT!D116 -> 5210.142857 | K37: =ROUND(H37/J37,2) -> 0.61 | L37: =ROUND(I37/J37,2) -> 0.49 | M37: =K37+L37 -> 1.1
A38: Direct Pumping | B38: San Luis WD Canalside Relift PP | C38: - | D38: =+MACRO_INPUT!J46 -> 73891.36987 | E38: =D38/$D$52 -> 0.0005019655898 | F38: =AllocationOfAdjustedMIConstructionRepayment[Adjusted M&I Construction Repayment]*E38 -> 69912.53402 | G38: =D38-F38 -> 3978.835847 | H38: =G38/10 -> 397.8835847 | I38: =G38*MACRO_INPUT!$Z$16 -> 318.784328 | J38: =MACRO_INPUT!D133 -> 454.7142857 | K38: =ROUND(H38/J38,2) -> 0.88 | L38: =ROUND(I38/J38,2) -> 0.7 | M38: =K38+L38 -> 1.58
A39: Direct Pumping | B39: Santa Clara Valley WD, Coyote PP | C39: - | D39: =+MACRO_INPUT!J48 -> 1356563.247 | E39: =D39/$D$52 -> 0.009215529113 | F39: =AllocationOfAdjustedMIConstructionRepayment[Adjusted M&I Construction Repayment]*E39 -> 1283516.252 | G39: =D39-F39 -> 73046.9943 | H39: =G39/10 -> 7304.69943 | I39: =G39*MACRO_INPUT!$Z$16 -> 5852.525183 | J39: - | K39: - | L39: - | M39: -
A40: Direct Pumping | B40: Santa Clara Valley WD, Pacheco PP | C40: - | D40: =+MACRO_INPUT!J49 -> 4713216.438 | E40: =D40/$D$52 -> 0.03201825157 | F40: =AllocationOfAdjustedMIConstructionRepayment[Adjusted M&I Construction Repayment]*E40 -> 4459423.41 | G40: =D40-F40 -> 253793.0282 | H40: =G40/10 -> 25379.30282 | I40: =G40*MACRO_INPUT!$Z$16 -> 20333.89742 | J40: - | K40: - | L40: - | M40: -
A41: Direct Pumping | B41: Santa Clara Valley WD, Gianelli, WR PGP | C41: - | D41: =+MACRO_INPUT!J50-MACRO_INPUT!R30 -> 7865554.342 | E41: =D41/$D$52 -> 0.05343300079 | F41: =AllocationOfAdjustedMIConstructionRepayment[Adjusted M&I Construction Repayment]*E41 -> 7442017.065 | G41: =D41-F41 -> 423537.2767 | H41: =G41/10 -> 42353.72767 | I41: =G41*MACRO_INPUT!$Z$16 -> 33933.80661 | J41: - | K41: - | L41: - | M41: -
A42: Total | B42: Santa Clara WD | C42: - | D42: =SUM(D39:D41) -> 13935334.03 | E42: 0.09466678147 | F42: 13184956.73 | G42: 750377.2992 | H42: 75037.72992 | I42: 60120.22921 | J42: =MACRO_INPUT!D117 -> 81377 | K42: =ROUND(H42/J42,2) -> 0.92 | L42: =ROUND(I42/J42,2) -> 0.74 | M42: =K42+L42 -> 1.66
A43: Direct Pumping | B43: Shasta Pumping Plant (City of Shasta Lake) | C43: - | D43: =+MACRO_INPUT!J51-MACRO_INPUT!R34 -> 569188.0861 | E43: =D43/$D$52 -> 0.003866660395 | F43: =AllocationOfAdjustedMIConstructionRepayment[Adjusted M&I Construction Repayment]*E43 -> 538538.9594 | G43: =D43-F43 -> 30649.12674 | H43: =G43/10 -> 3064.912674 | I43: =G43*MACRO_INPUT!$Z$16 -> 2455.608035 | J43: =MACRO_INPUT!D160 -> 1167.857143 | K43: =ROUND(H43/J43,2) -> 2.62 | L43: =ROUND(I43/J43,2) -> 2.1 | M43: =K43+L43 -> 4.72
A44: Direct Pumping | B44: State Delta PP (Cross Valley Canal) | C44: - | D44: =+MACRO_INPUT!J52 -> 15079.58 | E44: =D44/$D$52 -> 0.0001024399775 | F44: =AllocationOfAdjustedMIConstructionRepayment[Adjusted M&I Construction Repayment]*E44 -> 14267.58837 | G44: =D44-F44 -> 811.9916242 | H44: =G44/10 -> 81.19916242 | I44: =G44*MACRO_INPUT!$Z$16 -> 65.05676893 | J44: =MACRO_INPUT!D53 -> 278 | K44: =ROUND(H44/J44,2) -> 0.29 | L44: =ROUND(I44/J44,2) -> 0.23 | M44: =K44+L44 -> 0.52
A45: Direct Pumping | B45: Westlands WD Relifts | C45: - | D45: =+MACRO_INPUT!J53-MACRO_INPUT!R31 -> 783611.2842 | E45: =D45/$D$52 -> 0.005323299611 | F45: =AllocationOfAdjustedMIConstructionRepayment[Adjusted M&I Construction Repayment]*E45 -> 741416.0905 | G45: =D45-F45 -> 42195.19374 | H45: =G45/10 -> 4219.519374 | I45: =G45*MACRO_INPUT!$Z$16 -> 3380.678923 | J45: =MACRO_INPUT!D126 -> 2797 | K45: =ROUND(H45/J45,2) -> 1.51 | L45: =ROUND(I45/J45,2) -> 1.21 | M45: =K45+L45 -> 2.72
A46: Total | B46: Direct Pumping | C46: - | D46: =SUM(D29:D34)+D37+D38+D42+D43+D44+D45 -> 22070617.23 | E46: 0.1499321289 | F46: 20882178.53 | G46: 1188438.692 | H46: 118843.8692 | I46: 95217.70802 | J46: - | K46: - | L46: - | M46: -
A47: Subtotal | B47: - | C47: - | D47: =SUM(D12,D15,D28,D46) -> 116956441.8 | E47: =ROUND(SUM(E12+E15+E28+E46),8) -> 0.79451916 | F47: =SUM(F12,F15,F28,F46) -> 110658676.8 | G47: =SUM(G12,G15,G28,G46) -> 6297765.002 | H47: =SUM(H12,H15,H28,H46) -> 629776.5002 | I47: =SUM(I12,I15,I28,I46) -> 504576.932 | J47: - | K47: - | L47: - | M47: -
A48: Other Costs | B48: Other Costs: Deferred Interest Capitalized | C48: - | D48: =+MACRO_INPUT!R16 -> 21277763 | E48: =D48/$D$52 -> 0.1445460393 | F48: =AllocationOfAdjustedMIConstructionRepayment[Adjusted M&I Construction Repayment]*E48 -> 20132017.21 | G48: =D48-F48 -> 1145745.793 | H48: =G48/10 -> 114574.5793 | I48: =G48*MACRO_INPUT!$Z$16 -> 91797.15293 | J48: - | K48: - | L48: - | M48: -
A49: Other Costs | B49: Other Costs: Programmatic EIS Capitalized | C49: - | D49: =+MACRO_INPUT!R17 -> 1591067.959 | E49: 0.0108085879 | F49: =AllocationOfAdjustedMIConstructionRepayment[Adjusted M&I Construction Repayment]*E49 -> 1505393.566 | G49: =D49-F49 -> 85674.39255 | H49: =G49/10 -> 8567.439255 | I49: =G49*MACRO_INPUT!$Z$16 -> 6864.232331 | J49: - | K49: - | L49: - | M49: -
A50: Other Costs | B50: Other Costs: All others | C50: - | D50: =+MACRO_INPUT!R18 -> 7378781.395 | E50: 0.05012621043 | F50: =AllocationOfAdjustedMIConstructionRepayment[Adjusted M&I Construction Repayment]*E50 -> 6981455.429 | G50: =D50-F50 -> 397325.9661 | H50: =G50/10 -> 39732.59661 | I50: =G50*MACRO_INPUT!$Z$16 -> 31833.7564 | J50: - | K50: - | L50: - | M50: -
A51: Total | B51: Other Costs | C51: - | D51: =SUM(D48:D50) -> 30247612.35 | E51: 0.2054808377 | F51: 28618866.2 | G51: 1628746.152 | H51: 162874.6152 | I51: 130495.1417 | J51: =+MACRO_INPUT!D165 -> 331768.7143 | K51: =ROUND(H51/J51,2) -> 0.49 | L51: =ROUND(I51/J51,2) -> 0.39 | M51: =K51+L51 -> 0.88
A52: Grand Total | B52: - | C52: - | D52: =D47+D51 -> 147204054.2 | E52: 0.9999999977 | F52: =AllocationOfAdjustedMIConstructionRepayment[Adjusted M&I Construction Repayment]*E52 -> 139277542.7 | G52: 7926511.154 | H52: 792651.1154 | I52: 635072.0736 | J52: - | K52: - | L52: - | M52: -

Sheet Footnotes
A1: =INFORMATION!A1 -> 2023 Full Cost Additional Service Water Rates Sch TR-2b.Z25.xlsm
A2: =INFORMATION!$A$2 -> 01/03/2023
A3: =+OUTPUT!A4 -> CENTRAL VALLEY PROJECT
A4: =+OUTPUT!A5 -> SCHEDULE OF M&I FULL COST ADDITIONAL SERVICE WATER RATES
A5: =+OUTPUT!A6 -> AS OF SEPTEMBER 30, 2021
A6: =+OUTPUT!A7 -> 2023 SPECIAL WATER RATES
A8: FOOTNOTES:
A9: 1/
A10: Refer to M&I Water Rates, Schedule A-2Ba. Total Allocation of Construction Repayment is being reduced by the Assignment
A12: Repayment as of 9/30/2021 (Column C of A-2Ba) | B12: Construction Repayment per Assignment | C12: Adjusted M&I Construction Repayment
A13: =MACRO_INPUT!U16 -> 140056688 | B13: -779145 | C13: =SUM(A13:B13) -> 139277543
A15: 2/
A16: Contra Costa WD's conveyance costs are recovered through a repayment contract.
A18: 3/
A19: Cross Valley Canal contractors are charged for PUE constrcution component only. Therefore their deliveries are not included in determining the "Construction only" rate.
A21: 4/
A22: Suballocation of Jones Pumping Plant costs:
A24: Component/Facility | B24: Historical & Projected Deliveries (1981-2030) (Sch A-7) | C24: Ratio | D24: M&I Construction Costs at 9/30/2021 | E24: Project Use Energy BOR | F24: Project Use Energy DOE | G24: Project Use Energy Total
A25: Jones Pumping Plant: Delta-Mendota Exchange | B25: =+MACRO_INPUT!X17 -> 2496684.902 | C25: =ROUND(B25/B27,9) -> 0.334984801 | D25: =+D33*C25 -> 1468825.98 | E25: =+B33*C25 -> 1821434.833 | F25: =+C33*C25 -> 1770796.564 | G25: =SUM(E25:F25) -> 3592231.397
A26: Jones Pumping Plant: All Other Contractors | B26: =+MACRO_INPUT!X16 -> 4956444 | C26: =ROUND(B26/B27,9) -> 0.665015199 | D26: =+D33*C26 -> 2915928.12 | E26: =+B33*C26 -> 3615930.765 | F26: =+C33*C26 -> 3515403.165 | G26: =SUM(E26:F26) -> 7131333.93
A27: Total a/ | B27: =SUM(B25:B26) -> 7453128.902 | C27: 1 | D27: 4384754.1 | E27: 5437365.598 | F27: 5286199.73 | G27: 10723565.33
A29: a/
A30: Jones Pumping Plant - Conveyance Pumping:
A32: Total Construction (M&I Sch A-5) | B32: Less: BOR PUE (M&I Sch A-5) | C32: Less: DOE PUE (M&I Sch A-5) | D32: Construction Allocation
A33: =+MACRO_INPUT!J31 -> 15108319.43 | B33: =+MACRO_INPUT!K31 -> 5437365.598 | C33: =+MACRO_INPUT!L31 -> 5286199.73 | D33: =A33-B33-C33 -> 4384754.1
A35: 5/
A36: FY 2021 projected deliveries include Friant Dam and Friant-Kern Canal
A38: 6/
A39: FY 2021 projected deliveries for Jones PP do not include Delta Mendota Exchange contractors' deliveries.
